Workbook

Sheet Лист1
P2: Приложение № 2
L3: к Муниципальному контракту № _________ от "____" _______2021г
B5: УТВЕРЖДАЮ: | K5: СОГЛАСОВАНО:
B6: Директор ООО «Хэлф Фуд» | K6: ________________________________________________________________
K7: _____________________________________________
B9: ____________________/Э.В. Крюкова | K9: __________________ /
C13: Примерное двухнедельное меню для учащихся с 5-11 классы общеобразовательных школ города Актаныш и Актанышского муниципального района в 2021 уч.году (сезон-осень)
B16: № рецептуры | C16: Наименование блюд | F16: Выход | G16: Белки, г | H16: Жиры, г | I16: Углеводы, г | J16: Калорийность, | K16: Витамин В1, мг | L16: Витамин С, мг | M16: Витамин А, мг | N16: Витамин Е, мг | O16: Са, мг | P16: Р, мг | Q16: Mg, мг | R16: Fe, мг
C17: 1-ая неделя
C18: 1 день
B19: 71/2017 | C19: Огурцы свежие порционно | F19: 50 | G19: 0.4 | H19: 0.05 | I19: 1.25 | J19: 7 | K19: 0.016 | L19: 2.45 | M19: 0.00 | N19: 0.05 | O19: 8.5 | P19: 15.00 | Q19: 7.00 | R19: 0.25
B20: ТТК-9 | C20: Фрикадельки "Особые" с соусом томатным | F20: 50/50 | G20: 12.540 | H20: 19.040 | I20: 9.930 | J20: 261.21 | K20: 0.010 | L20: 0.110 | M20: 3.330 | N20: 0.110 | O20: 186.250 | P20: 6.200 | Q20: 25.180 | R20: 1.150
B21: 516/2004 | C21: Макароны отварные с маслом | F21: 150/5 | G21: 5.100 | H21: 7.500 | I21: 28.500 | J21: 210 | K21: 0.020 | L21: 0.000 | M21: 0.027 | N21: 0.000 | O21: 1.360 | P21: 60.900 | Q21: 16.300 | R21: 0.520
B22: 378/2015 | C22: Чай с молоком с сахаром | F22: 150/50/15 | G22: 1.520 | H22: 1.350 | I22: 15.900 | J22: 81 | K22: 0.040 | L22: 1.330 | M22: 0.16 | N22: 0.000 | O22: 136.600 | P22: 92.800 | Q22: 5.400 | R22: 0.110
C23: Хлеб сельский | F23: 20 | G23: 1.3 | H23: 0.2 | I23: 9 | J23: 44 | K23: 0.02 | L23: 0 | M23: 0 | N23: 0.2 | O23: 4.7 | P23: 21.1 | Q23: 6.3 | R23: 0.52
C24: Хлеб белый | F24: 30 | G24: 2.280 | H24: 0.240 | I24: 14.760 | J24: 71 | K24: 0.033 | L24: 0 | M24: 0 | N24: 0.330 | O24: 6.000 | P24: 19.500 | Q24: 4.200 | R24: 0.330
E25: Итого | G25: =SUM(G19:G24) -> 23.14 | H25: 28.380 | I25: 79.34 | J25: 674 | K25: 0.139 | L25: 3.89 | M25: 3.52 | N25: 0.690 | O25: 343.41 | P25: 215.50 | Q25: 64.4 | R25: 2.880
C27: 2 день
B28: 47/2015 | C28: Салат из квашеной капусты | F28: 60 | G28: 2.600 | H28: 5.58 | I28: 4.944 | J28: 56 | K28: 0.000 | L28: 4.46 | M28: 14.46 | N28: 0.38 | O28: 29.60 | P28: 25.1 | Q28: 19.10 | R28: 0.98
B29: 289/2015 | C29: Рагу с мясом птицы | F29: 50/150 | G29: 12.300 | H29: 17.660 | I29: 29.850 | J29: 313.000 | K29: 0.201 | L29: 8.760 | M29: 0.180 | N29: 2.100 | O29: 57.660 | P29: 201.911 | Q29: 26.394 | R29: 0.111
B30: ТТК-475 | C30: Чай полусладкий | F30: 200 | G30: 0.18 | H30: 0.00 | I30: 4.78 | J30: 19.90 | K30: 0.01 | L30: 0.04 | M30: 0.00 | N30: 0.01 | O30: 5.25 | P30: 1.34 | Q30: 4.40 | R30: 0.01
C31: Хлеб сельский | F31: 20 | G31: 1.3 | H31: 0.2 | I31: 9 | J31: 44 | K31: 0.02 | L31: 0 | M31: 0 | N31: 0.2 | O31: 4.7 | P31: 21.1 | Q31: 6.3 | R31: 0.52
C32: Хлеб белый | F32: 30 | G32: 2.280 | H32: 0.240 | I32: 14.760 | J32: 71 | K32: 0.033 | L32: 0 | M32: 0 | N32: 0.330 | O32: 6.000 | P32: 19.500 | Q32: 4.200 | R32: 0.330
B33: 338/2017 | C33: Яблоки свежие | F33: 110 | G33: 0.000 | H33: 0.000 | I33: 17.020 | J33: 67.84 | K33: 0.420 | L33: 14 | M33: 0 | N33: 0.240 | O33: 22.400 | P33: 13.200 | Q33: 10.800 | R33: 3.080
E34: Итого | G34: =SUM(G28:G33) -> 18.660 | H34: 23.68 | I34: 80.354 | J34: 571.74 | K34: 0.684 | L34: 27.26 | M34: 14.64 | N34: 3.26 | O34: 125.61 | P34: 282.151 | Q34: 71.19 | R34: 5.03
C36: 3 день
B37: 33/2012 | C37: Свекла отварнаяс с маслом раст. | F37: 50 | G37: 0.850 | H37: 3.65 | I37: 5.000 | J37: 56 | K37: 0.010 | L37: 5.7 | M37: 0 | N37: 0 | O37: 21.09 | P37: 24.58 | Q37: 12.54 | R37: 0.80
B38: 290/2015 | C38: Грудка куриная тушеная | F38: 50/50 | G38: 11.650 | H38: 10.756 | I38: 11.632 | J38: 164 | K38: 0.168 | L38: 6.326 | M38: 0.000 | N38: 0.956 | O38: 85.185 | P38: 163.198 | Q38: 15.716 | R38: 1.800
B39: 510/2004 | C39: Каша гречневая вязкая | F39: 150/5 | G39: 5.400 | H39: 8.200 | I39: 26.900 | J39: 180 | K39: 0.240 | L39: 0.100 | M39: 0.000 | N39: 0.480 | O39: 208.800 | P39: 134.400 | Q39: 38.000 | R39: 1.200
B40: 377/2015 | C40: Чай с лимоном | F40: 200/15/7 | G40: 0.084 | H40: 0.012 | I40: 15.185 | J40: 62 | K40: 0.000 | L40: 1.120 | M40: 0 | N40: 0.010 | O40: 2.860 | P40: 1.340 | Q40: 0.730 | R40: 0.080
C41: Хлеб сельский | F41: 20 | G41: 1.3 | H41: 0.2 | I41: 9 | J41: 44 | K41: 0.02 | L41: 0 | M41: 0 | N41: 0.2 | O41: 4.7 | P41: 21.1 | Q41: 6.3 | R41: 0.52
C42: Хлеб белый | F42: 30 | G42: 2.280 | H42: 0.240 | I42: 14.760 | J42: 71 | K42: 0.033 | L42: 0 | M42: 0 | N42: 0.330 | O42: 6.000 | P42: 19.500 | Q42: 4.200 | R42: 0.330
C43: Печенье сахарное | F43: 36 | G43: 2.700 | H43: 3.528 | I43: 26.784 | J43: 150.12 | K43: 0.029 | L43: 0 | M43: 0.004 | N43: 1.260 | O43: 10.440 | P43: 32.400 | Q43: 7.200 | R43: 0.756
E44: Итого | G44: =SUM(G37:G43) -> 24.264 | H44: 26.586 | I44: 109.261 | J44: 727.12 | K44: 0.500 | L44: 13.246 | M44: 0.0036 | N44: 3.236 | O44: 339.075 | P44: 396.518 | Q44: 84.69 | R44: 5.49
C46: 4 день
B47: 71/2017 | C47: Огурцы свежие порционно | F47: 50 | G47: 0.4 | H47: 0.05 | I47: 1.25 | J47: 7 | K47: 0.016 | L47: 2.45 | M47: 0.00 | N47: 0.05 | O47: 8.5 | P47: 15.00 | Q47: 7.00 | R47: 0.25
B48: ТТК-11 | C48: Биточки Рябушка | F48: 75 | G48: 9.000 | H48: 10.500 | I48: 11.250 | J48: 172 | K48: 0.082 | L48: 0.000 | M48: 0.018 | N48: 0.150 | O48: 10.340 | P48: 124.370 | Q48: 21.050 | R48: 1.140
B49: 312/2015 | C49: Картофельное пюре | F49: 150/5 | G49: 3.800 | H49: 8.200 | I49: 26.300 | J49: 207 | K49: 0.190 | L49: 0.110 | M49: 13.080 | N49: 0.440 | O49: 58.000 | P49: 116.400 | Q49: 36.000 | R49: 1.480
B50: ТТК-475 | C50: Чай полусладкий | F50: 200 | G50: 0.18 | H50: 0.00 | I50: 4.78 | J50: 19.90 | K50: 0.01 | L50: 0.04 | M50: 0.00 | N50: 0.01 | O50: 5.25 | P50: 1.34 | Q50: 4.40 | R50: 0.01
C51: Хлеб сельский | F51: 20 | G51: 1.3 | H51: 0.2 | I51: 9 | J51: 44 | K51: 0.02 | L51: 0 | M51: 0 | N51: 0.2 | O51: 4.7 | P51: 21.1 | Q51: 6.3 | R51: 0.52
C52: Хлеб белый | F52: 30 | G52: 2.280 | H52: 0.240 | I52: 14.760 | J52: 71 | K52: 0.033 | L52: 0 | M52: 0 | N52: 0.330 | O52: 6.000 | P52: 19.500 | Q52: 4.200 | R52: 0.330
E53: Итого | G53: =SUM(G47:G52) -> 16.96 | H53: 19.19 | I53: 67.34 | J53: 520.90 | K53: 0.351 | L53: 2.600 | M53: 13.098 | N53: 1.180 | O53: 92.790 | P53: 297.71 | Q53: 78.95 | R53: 3.730
C55: 5 день
B56: 71/2017 | C56: Помидоры свежие порционно | F56: 50 | G56: 0.300 | H56: 0.000 | I56: 1.900 | J56: 7.00 | K56: 0.030 | L56: 6.080 | M56: 0.000 | N56: 0.200 | O56: 7.130 | P56: 13.3 | Q56: 10.2 | R56: 0.125
B57: ТТК-12 | C57: Котлеты Любимые | F57: 75 | G57: 10.50 | H57: 9.00 | I57: 9.00 | J57: 157.00 | K57: 0.083 | L57: 0.000 | M57: 0.021 | N57: 0.18 | O57: 12.74 | P57: 141.27 | Q57: 21.10 | R57: 1.27
B58: 311/2004 | C58: Каша рисовая вязкая | F58: 150/5 | G58: 2.700 | H58: 7.020 | I58: 27.540 | J58: 184 | K58: 0.020 | L58: 0.020 | M58: 0.000 | N58: 0.220 | O58: 5.400 | P58: 27.600 | Q58: 19.700 | R58: 0.410
B59: 378/2015 | C59: Чай с молоком с сахаром | F59: 150/50/15 | G59: 1.520 | H59: 1.350 | I59: 15.900 | J59: 81 | K59: 0.040 | L59: 1.330 | M59: 0.16 | N59: 0.000 | O59: 136.600 | P59: 92.800 | Q59: 5.400 | R59: 0.110
C60: Хлеб сельский | F60: 20 | G60: 1.3 | H60: 0.2 | I60: 9 | J60: 44 | K60: 0.02 | L60: 0 | M60: 0 | N60: 0.2 | O60: 4.7 | P60: 21.1 | Q60: 6.3 | R60: 0.52
C61: Хлеб белый | F61: 30 | G61: 2.280 | H61: 0.240 | I61: 14.760 | J61: 71 | K61: 0.033 | L61: 0 | M61: 0 | N61: 0.330 | O61: 6.000 | P61: 19.500 | Q61: 4.200 | R61: 0.330
E62: Итого | G62: =SUM(G56:G61) -> 18.600 | H62: 17.810 | I62: 78.100 | J62: 544.000 | K62: 0.226 | L62: 7.430 | M62: 0.181 | N62: 1.130 | O62: 172.570 | P62: 315.520 | Q62: 66.90 | R62: 2.765
C63: 6 день
B64: 45/2017 | C64: Салат из свежей капусты | F64: 60 | G64: 0.850 | H64: 3.05 | I64: 5.410 | J64: 52.44 | K64: 0.020 | L64: 19.47 | M64: 14.46 | N64: 0.38 | O64: 22.42 | P64: 16.57 | Q64: 9.10 | R64: 0.31
B65: ТТК-21 | C65: Фрикадельки рыбные "Капелька" с соусом томатным | F65: 50/50 | G65: 4.46 | H65: 7.60 | I65: 5.63 | J65: 108.78 | K65: 0.02 | L65: 2.64 | M65: 0.01 | N65: 0.18 | O65: 13.40 | P65: 7.24 | Q65: 9.27 | R65: 0.50
B66: 516/2004 | C66: Макароны отварные с маслом | F66: 180/5 | G66: 6.400 | H66: 5.750 | I66: 46.080 | J66: 261.66 | K66: 0.087 | M66: 0.100 | N66: 0.816 | O66: 16.457 | P66: 57.009 | Q66: 8.479 | R66: 0.869
B67: ТТК-475 | C67: Чай полусладкий | F67: 200 | G67: 0.18 | H67: 0.00 | I67: 4.78 | J67: 19.90 | K67: 0.01 | L67: 0.04 | M67: 0.00 | N67: 0.01 | O67: 5.25 | P67: 1.34 | Q67: 4.40 | R67: 0.01
C68: Хлеб сельский | F68: 20 | G68: 1.3 | H68: 0.2 | I68: 9 | J68: 44 | K68: 0.02 | L68: 0 | M68: 0 | N68: 0.2 | O68: 4.7 | P68: 21.1 | Q68: 6.3 | R68: 0.52
C69: Хлеб белый | F69: 30 | G69: 2.280 | H69: 0.240 | I69: 14.760 | J69: 71 | K69: 0.033 | L69: 0 | M69: 0 | N69: 0.330 | O69: 6.000 | P69: 19.500 | Q69: 4.200 | R69: 0.330
E70: Итого | G70: =SUM(G64:G69) -> 15.470 | H70: =SUM(H64:H69) -> 16.840 | I70: =SUM(I64:I69) -> 85.660 | J70: =SUM(J64:J69) -> 557.780 | K70: =SUM(K64:K69) -> 0.190 | L70: =SUM(L67:L69) -> 0.040 | M70: =SUM(M64:M69) -> 14.570 | N70: 1.916 | O70: 68.227 | P70: 122.759 | Q70: 41.749 | R70: 2.539
B73: № рецептуры | C73: Наименование блюд | F73: Выход | G73: Белки, г | H73: Жиры, г | I73: Углеводы, г | J73: Калорийность, | K73: Витамин В1, мг | L73: Витамин С, мг | M73: Витамин А, мг | N73: Витамин Е, мг | O73: Са, мг | P73: Р, мг | Q73: Mg, мг | R73: Fe, мг
C74: 2-ая неделя
C75: 1 день
B76: 71/2017 | C76: Помидоры свежие порционно | F76: 50 | G76: 0.300 | H76: 0.000 | I76: 1.900 | J76: 7.00 | K76: 0.030 | L76: 6.080 | M76: 0.000 | N76: 0.200 | O76: 7.130 | P76: 13.3 | Q76: 10.2 | R76: 0.125
B77: 280/2015 | C77: Фрикадельки в соусе | F77: 50/50 | G77: 8.330 | H77: 7.743 | I77: 3.194 | J77: 175 | K77: 0.030 | L77: 0.650 | M77: 0.100 | N77: 1.256 | O77: 100.530 | P77: 110.071 | Q77: 0.077 | R77: 1.000
B78: 516/2004 | C78: Макароны отварные с маслом | F78: 150/5 | G78: 5.100 | H78: 7.500 | I78: 28.500 | J78: 210 | K78: 0.020 | L78: 0.000 | M78: 0.027 | N78: 0.000 | O78: 1.360 | P78: 60.900 | Q78: 16.300 | R78: 0.520
B79: ТТК-475 | C79: Чай полусладкий | F79: 200 | G79: 0.18 | H79: 0.00 | I79: 4.78 | J79: 19.90 | K79: 0.01 | L79: 0.04 | M79: 0.00 | N79: 0.01 | O79: 5.25 | P79: 1.34 | Q79: 4.40 | R79: 0.01
C80: Хлеб сельский | F80: 20 | G80: 1.3 | H80: 0.2 | I80: 9 | J80: 44 | K80: 0.02 | L80: 0 | M80: 0 | N80: 0.2 | O80: 4.7 | P80: 21.1 | Q80: 6.3 | R80: 0.52
C81: Хлеб белый | F81: 30 | G81: 2.280 | H81: 0.240 | I81: 14.760 | J81: 71 | K81: 0.033 | L81: 0 | M81: 0 | N81: 0.330 | O81: 6.000 | P81: 19.500 | Q81: 4.200 | R81: 0.330
E82: Итого | G82: =SUM(G76:G81) -> 17.49 | H82: 15.683 | I82: 62.134 | J82: 526.9 | K82: 0.143 | L82: 6.77 | M82: 0.13 | N82: 1.996 | O82: 124.97 | P82: 226.161 | Q82: 41.477 | R82: 2.505
C84: 2 день
B85: 10/2014 | C85: Салат из зеленого горошка с маслом раст. | F85: 50 | G85: 0.78 | H85: 1.18 | I85: 5.36 | J85: 54.38 | K85: 0.014 | L85: 26.25 | M85: 0.01 | N85: 0.03 | O85: 4.28 | P85: 13.4 | Q85: 12.8 | R85: 0
B86: 492/2004 | C86: Плов из птицы | F86: 50/150 | G86: 14.510 | H86: 14.710 | I86: 28.340 | J86: 364 | K86: 0.210 | L86: 4.900 | M86: 0.100 | N86: 1.200 | O86: 83.070 | P86: 273.000 | Q86: 40.450 | R86: 1.900
B87: 377/2015 | C87: Чай с лимоном | F87: 200/15/7 | G87: 0.084 | H87: 0.012 | I87: 15.185 | J87: 62 | K87: 0.000 | L87: 1.120 | M87: 0 | N87: 0.010 | O87: 2.860 | P87: 1.340 | Q87: 0.730 | R87: 0.080
C88: Хлеб сельский | F88: 20 | G88: 1.3 | H88: 0.2 | I88: 9 | J88: 44 | K88: 0.02 | L88: 0 | M88: 0 | N88: 0.2 | O88: 4.7 | P88: 21.1 | Q88: 6.3 | R88: 0.52
C89: Хлеб белый | F89: 30 | G89: 2.280 | H89: 0.240 | I89: 14.760 | J89: 71 | K89: 0.033 | L89: 0 | M89: 0 | N89: 0.330 | O89: 6.000 | P89: 19.500 | Q89: 4.200 | R89: 0.330
B90: 338/2017 | C90: Яблоки свежие | F90: 110 | G90: 0.000 | H90: 0.000 | I90: 17.020 | J90: 67.84 | K90: 0.420 | L90: 14 | M90: 0 | N90: 0.240 | O90: 22.400 | P90: 13.200 | Q90: 10.800 | R90: 3.080
E91: Итого | G91: =SUM(G85:G90) -> 18.95 | H91: 16.342 | I91: 89.67 | J91: 663.22 | K91: 0.697 | L91: 46.27 | M91: 0.11 | N91: 2.01 | O91: 123.31 | P91: 341.54 | Q91: 75.28 | R91: 5.91
C93: 3 день
B94: ТТК-19 | C94: Салат из свежей капусты с огурцом | F94: 60 | G94: 0.840 | H94: 2.7 | I94: 2.640 | J94: 38.4 | K94: 0.005 | L94: 23.16 | M94: 0 | N94: 0.06 | O94: 23.640 | P94: 20.76 | Q94: 9.720 | R94: 0.48
B95: ТТК | C95: Биточки рыбные "Морячка" | F95: 75 | G95: 11.62 | H95: 4.87 | I95: 6.370 | J95: 116 | K95: 0.075 | L95: 1.600 | M95: 0.026 | N95: 0.200 | O95: 17.270 | P95: 127.200 | Q95: 39.800 | R95: 0.750
B96: 520/2004 | C96: Картофельное пюре с маслом | F96: 150/5 | G96: 3.090 | H96: 8.282 | I96: 22.000 | J96: 172 | K96: 0.164 | L96: 7.943 | M96: 0.080 | N96: 0.231 | O96: 47.805 | P96: 98.835 | Q96: 8.000 | R96: 0.000
B97: ТТК-475 | C97: Чай полусладкий | F97: 200 | G97: 0.18 | H97: 0.00 | I97: 4.78 | J97: 19.90 | K97: 0.01 | L97: 0.04 | M97: 0.00 | N97: 0.01 | O97: 5.25 | P97: 1.34 | Q97: 4.40 | R97: 0.01
C98: Хлеб сельский | F98: 20 | G98: 1.0 | H98: 0.2 | I98: 9 | J98: 44 | K98: 0.014 | L98: 0 | M98: 0 | N98: 0.33 | O98: 6.0 | P98: 19.5 | Q98: 4.2 | R98: 0.33
C99: Хлеб белый | F99: 30 | G99: 2.280 | H99: 0.240 | I99: 14.760 | J99: 71 | K99: 0.033 | L99: 0 | M99: 0 | N99: 0.330 | O99: 6.000 | P99: 19.500 | Q99: 4.200 | R99: 0.330
E100: Итого | G100: =SUM(G94:G99) -> 19.010 | H100: 16.292 | I100: 59.550 | J100: 461.3 | K100: 0.301 | L100: 32.743 | M100: 0.11 | N100: 1.161 | O100: 105.97 | P100: 287.135 | Q100: 70.32 | R100: 1.90
C102: 4 день
B103: 12/2014 | C103: Кукуруза консервированная с маслом раст. | F103: 40 | G103: 1.150 | H103: 2.460 | I103: 3.210 | J103: 59.58 | K103: 0.000 | L103: 3.770 | M103: 2.000 | N103: 0.000 | O103: 30.000 | P103: 0.0 | Q103: 13 | R103: 46.000
B104: ТТК-9 | C104: Фрикадельки "Особые" с соусом томатным | F104: 50/50 | G104: 12.540 | H104: 19.040 | I104: 9.930 | J104: 261.21 | K104: 0.010 | L104: 0.110 | M104: 3.330 | N104: 0.110 | O104: 186.250 | P104: 6.200 | Q104: 25.180 | R104: 1.150
B105: 516/2004 | C105: Макароны отварные с маслом | F105: 150/5 | G105: 5.100 | H105: 7.500 | I105: 28.500 | J105: 210 | K105: 0.020 | L105: 0.000 | M105: 0.027 | N105: 0.000 | O105: 1.360 | P105: 60.900 | Q105: 16.300 | R105: 0.520
B106: 377/2015 | C106: Чай с лимоном | F106: 200/15/7 | G106: 0.084 | H106: 0.012 | I106: 15.185 | J106: 62 | K106: 0.000 | L106: 1.120 | M106: 0 | N106: 0.010 | O106: 2.860 | P106: 1.340 | Q106: 0.730 | R106: 0.080
C107: Хлеб сельский | F107: 20 | G107: 1.3 | H107: 0.2 | I107: 9 | J107: 44 | K107: 0.02 | L107: 0 | M107: 0 | N107: 0.2 | O107: 4.7 | P107: 21.1 | Q107: 6.3 | R107: 0.52
C108: Хлеб белый | F108: 30 | G108: 2.280 | H108: 0.240 | I108: 14.760 | J108: 71 | K108: 0.033 | L108: 0 | M108: 0 | N108: 0.330 | O108: 6.000 | P108: 19.500 | Q108: 4.200 | R108: 0.330
C109: Прчники | F109: 38 | G109: 2.090 | H109: 1.520 | I109: 30.020 | J109: 144 | K109: 0.000 | L109: 0 | M109: 0 | N109: 0.000 | O109: 3.420 | P109: 15.580 | Q109: 0.000 | R109: 0.228
E110: Итого | G110: =SUM(G103:G109) -> 24.54 | H110: 30.972 | I110: 110.605 | J110: 852.19 | K110: 0.083 | L110: 5.000 | M110: 5.357 | N110: 0.650 | O110: 234.590 | P110: 124.62 | Q110: 65.710 | R110: 48.828
C112: 5 день
B113: 71/2017 | C113: Огурцы свежие порционно | F113: 50 | G113: 0.4 | H113: 0.05 | I113: 1.25 | J113: 7 | K113: 0.016 | L113: 2.45 | M113: 0.00 | N113: 0.05 | O113: 8.5 | P113: 15.00 | Q113: 7.00 | R113: 0.25
B114: 290/2015 | C114: Грудка куриная тушеная | F114: 50/50 | G114: 11.650 | H114: 10.756 | I114: 11.632 | J114: 164 | K114: 0.168 | L114: 6.326 | M114: 0.000 | N114: 0.956 | O114: 85.185 | P114: 163.198 | Q114: 15.716 | R114: 1.800
B115: 216/2004 | C115: Картофель тушеный | F115: 150 | G115: 2.80 | H115: 10.10 | I115: 24.30 | J115: 206.60 | K115: 0.17 | L115: 3.44 | M115: 0.19 | N115: 0.22 | O115: 28.10 | P115: 27.60 | Q115: 3.63 | R115: 1.38
B116: ТТК-475 | C116: Чай полусладкий | F116: 200 | G116: 0.18 | H116: 0.00 | I116: 4.78 | J116: 19.90 | K116: 0.01 | L116: 0.04 | M116: 0.00 | N116: 0.01 | O116: 5.25 | P116: 1.34 | Q116: 4.40 | R116: 0.01
C117: Хлеб сельский | F117: 20 | G117: 1.3 | H117: 0.2 | I117: 9 | J117: 44 | K117: 0.02 | L117: 0 | M117: 0 | N117: 0.2 | O117: 4.7 | P117: 21.1 | Q117: 6.3 | R117: 0.52
C118: Хлеб белый | F118: 30 | G118: 2.280 | H118: 0.240 | I118: 14.760 | J118: 71 | K118: 0.033 | L118: 0 | M118: 0 | N118: 0.330 | O118: 6.000 | P118: 19.500 | Q118: 4.200 | R118: 0.330
E119: Итого | G119: =SUM(G113:G118) -> 18.61 | H119: 21.346 | I119: 65.722 | J119: 512.50 | K119: 0.417 | L119: 12.256 | M119: 0.190 | N119: 1.766 | O119: 137.735 | P119: 247.738 | Q119: 41.246 | R119: 4.290
C120: 6 день
B121: ТТК-130 | C121: Салат Метелка | F121: 60 | G121: 0.600 | H121: 2.400 | I121: 4.800 | J121: 42.00 | K121: 0.040 | L121: 4.300 | M121: 0.000 | N121: 12.600 | O121: 16.740 | P121: 3.300 | Q121: 11.100 | R121: 0.780
B122: 492/2004 | C122: Плов из птицы | F122: 50/150 | G122: 14.510 | H122: 14.710 | I122: 28.340 | J122: 364 | K122: 0.210 | L122: 4.900 | M122: 0.100 | N122: 1.200 | O122: 83.070 | P122: 273.000 | Q122: 40.450 | R122: 1.900
B123: ТТК-475 | C123: Чай полусладкий | F123: 200 | G123: 0.18 | H123: 0.00 | I123: 4.78 | J123: 19.90 | K123: 0.01 | L123: 0.04 | M123: 0.00 | N123: 0.01 | O123: 5.25 | P123: 1.34 | Q123: 4.40 | R123: 0.01
C124: Хлеб сельский | F124: 20 | G124: 1.3 | H124: 0.2 | I124: 9 | J124: 44 | K124: 0.02 | L124: 0 | M124: 0 | N124: 0.2 | O124: 4.7 | P124: 21.1 | Q124: 6.3 | R124: 0.52
C125: Хлеб белый | F125: 30 | G125: 2.280 | H125: 0.240 | I125: 14.760 | J125: 71 | K125: 0.033 | L125: 0 | M125: 0 | N125: 0.330 | O125: 6.000 | P125: 19.500 | Q125: 4.200 | R125: 0.330
E126: Итого | G126: =SUM(G121:G125) -> 18.870 | H126: 17.550 | I126: 61.680 | J126: 540.90 | K126: 0.313 | L126: 9.240 | M126: 0.100 | N126: 14.340 | O126: 115.760 | P126: 318.240 | Q126: 66.450 | R126: 3.540
B128: Примечание: при составлении меню использованы
B129: 1. СанПиН 2.3/2.4.3590-20 "Санитарно-эпидемиологические требования к организации общественного питания населения"
B130: 2. Сборник технических нормативов. Сборник рецептур блюд и кулинарных изделий для предприятий общественного питания при общеобразовательных школах. Под общей редакцией
B131: М.П. Могильного и В.А. Тутельяна.- М.: ДеЛи плюс, 2015.
B132: 3. Сборник технических нормативов –Сборник технических нормативов. Сборник рецептур блюд и кулинарных изделий для предприятий общественного питания при общеобразовательных школах. / под ред. М.П. Могильного
B133: и Т.В. Тутельяна. –М.: ДеЛи принт, 2011.
B134: 4. Технико-технологические карты,разработанные ООО "Школьное питание"
B135: конт.тел.:8(8552) 707107
